Workbook

Sheet START
B1: OM DENNE MALEN
B2: Spor innledende investeringer i nettstedet, inntektene og kostnadene ved hjelp av dette budsjetteringsverktøyet for nettsted.
B3: Skriv inn detaljene i tabeller for å beregne totaler og evalueringsmåledata automatisk.
B4: Obs!
B5: Flere instruksjoner finnes i kolonne A i regnearket BUDSJETTVERKTØY. Denne teksten er skjult med hensikt. Hvis du vil fjerne teksten, velger du kolonne A og deretter SLETT. Hvis du vil vise teksten, velger du kolonne A og endrer skriftfarge.
B6: Hvis du vil finne ut mer om tabeller i regnearket, kan du trykke på SKIFT og F10 i en tabell, velge alternativet for TABELL og deretter ALTERNATIV TEKST.

Sheet BUDSJETTVERKTØY
B2: Quadrex Hardware
B3: BUDSJETTERINGSVERKTØY FOR NETTSTED
B4: 2022-12-01
B6: Firmadata | C6: Sats
B7: Avkastningskrav | C7: 10%
B8: Avgiftssats | C8: 30%
B10: Innledende investering i nettsted | C10: År
B11: Maskinvare (f.eks. servere) | C11: kr 25,000.00
B12: Programvare (f.eks. programvare for e-handelkatalog) | C12: kr 15,000.00
B13: Utvikling (f. eks. utforming og utvikling av et tredjepartsnettsted) | C13: kr 150,000.00
B14: Totale førstegangsinvesteringer | C14: =SUBTOTAL(109,InitialInvest[År]) -> kr 190,000.00
B16: Inntekter fra nettstedet | C16: År 1 | D16: År 2 | E16: År 3
B17: Direkte salg | C17: kr 15,000.00 | D17: kr 50,000.00 | E17: kr 75,000.00
B18: Trinnvise salg som resultat av forbedret effektivitet fra kampanje/selger | C18: kr 25,000.00 | D18: kr 25,000.00 | E18: kr 25,000.00
B19: Trinnvise salg som resultat av økt partnerdeltakelse | C19: kr 25,000.00 | D19: kr 25,000.00 | E19: kr 25,000.00
B20: Reduserte reisekostnader | C20: kr 25,000.00 | D20: kr 25,000.00 | E20: kr 25,000.00
B21: Reduserte kostnader for kundeservice | C21: kr 50,000.00 | D21: kr 50,000.00 | E21: kr 50,000.00
B22: Totalinntekter | C22: =SUBTOTAL(109,Inntekter[År 1]) -> kr 140,000.00 | D22: =SUBTOTAL(109,Inntekter[År 2]) -> kr 175,000.00 | E22: =SUBTOTAL(109,Inntekter[År 3]) -> kr 200,000.00
B24: Kostnader (bortsett fra førstegangskapitalinvesteringer) | C24: ÅR 1 | D24: ÅR 2 | E24: ÅR 3
B25: Kostnad for salg | C25: kr 7,500.00 | D25: kr 25,000.00 | E25: kr 37,500.00
B26: Vedlikehold | C26: kr 15,000.00 | D26: kr 15,000.00 | E26: kr 15,000.00
B27: Prosjektstyring, kundestøtte | C27: kr 35,000.00 | D27: kr 35,000.00 | E27: kr 35,000.00
B28: Annonsering på nettet, registrering av søkemotor | C28: kr 10,000.00 | D28: kr 10,000.00 | E28: kr 10,000.00
B29: Avskrivning på store utgifter (beregningen bruker tre år) | C29: =InitialInvest[[#Totals],[År]]/3 -> kr 63,333.33 | D29: =InitialInvest[[#Totals],[År]]/3 -> kr 63,333.33 | E29: =InitialInvest[[#Totals],[År]]/3 -> kr 63,333.33
B30: Totale kostnader | C30: =SUBTOTAL(109,Kostnader[ÅR 1]) -> kr 130,833.33 | D30: =SUBTOTAL(109,Kostnader[ÅR 2]) -> kr 148,333.33 | E30: =SUBTOTAL(109,Kostnader[ÅR 3]) -> kr 160,833.33
B32: Totaler | D32: År 1 | E32: År 2 | F32: År 3
B33: Nettoinntekter (kostnader) | D33: =Inntekter[[#Totals],[År 1]]-Kostnader[[#Totals],[ÅR 1]] -> kr 9,166.67 | E33: =Inntekter[[#Totals],[År 2]]-Kostnader[[#Totals],[ÅR 2]] -> kr 26,666.67 | F33: =Inntekter[[#Totals],[År 3]]-Kostnader[[#Totals],[ÅR 3]] -> kr 39,166.67
B34: Avgift | D34: =D33*Skattesats -> kr 2,750.00 | E34: =E33*Skattesats -> kr 8,000.00 | F34: =F33*Skattesats -> kr 11,750.00
B35: Verdi etter skatt | D35: =D33-D34 -> kr 6,416.67 | E35: kr 18,666.67 | F35: kr 27,416.67
B36: Avskrivning lagt til | D36: =C29 -> kr 63,333.33 | E36: =D29 -> kr 63,333.33 | F36: =E29 -> kr 63,333.33
B37: Kontantstrøm | C37: =-InitialInvest[[#Totals],[År]] -> -kr 190,000.00 | D37: =D35+D36 -> kr 69,750.00 | E37: kr 82,000.00 | F37: kr 90,750.00
B38: Akkumulert kontantstrøm | C38: =C37 -> -kr 190,000.00 | D38: =C38+D37 -> -kr 120,250.00 | E38: -kr 38,250.00 | F38: kr 52,500.00
B40: Evalueringsmåledata | C40: Verdier
B41: Netto nåverdi (NPV) | C41: =C37+(NPV(ROR,D37:F37)) -> kr 9,359.50
B42: Internrente (IRR) | C42: =IRR(C37:F37) -> 12.66%
B43: Tilbakebetalingstid (i år) | C43: =IF(F38<=0,"Overskrider 3 år",IF(E38<=0,(F37-F38)/F37+2,IF(D38<=0,(E37-E38)/E37+1,IF(C38<=0,(D37-D38)/D37,"IT")))) -> 2.42
